[Event "Titled Tuesday Blitz January 10 Early 2023"]
[White "Hartikainen, Jarmo"]
[Black "Sargissyan, Sargis"]
[WhiteFideId "503134"]
[BlackFideId "13303210"]
[WhiteElo "2108"]
[BlackElo "2234"]
[Result "0-1"]
[Round "09"]
[TimeControl "180+2"]
[Date "2023.01.10"]
[WhiteClock "0:00:13"]
[BlackClock "0:01:10"]

1. d3 {[%clk 0:03:00]}  d6 {[%clk 0:02:57]} 2. g3 {[%clk 0:03:00]}  g6 {[%clk 0:02:56]} 3. Bg2 {[%clk 0:03:00]}  Bg7 {[%clk 0:02:57]} 4. Nf3 {[%clk 0:03:00]}  e5 {[%clk 0:02:53]} 5. O-O {[%clk 0:02:59]}  Ne7 {[%clk 0:02:53]} 6. c4 {[%clk 0:02:44]}  O-O {[%clk 0:02:53]} 7. Nc3 {[%clk 0:02:44]}  f5 {[%clk 0:02:39]} 8. Rb1 {[%clk 0:02:40]}  h6 {[%clk 0:02:33]} 9. Qc2 {[%clk 0:02:31]}  c6 {[%clk 0:02:21]} 10. e4 {[%clk 0:02:17]}  f4 {[%clk 0:02:18]} 11. b4 {[%clk 0:02:09]}  Bg4 {[%clk 0:02:12]} 12. Bb2 {[%clk 0:01:51]}  Nd7 {[%clk 0:02:00]} 13. a4 {[%clk 0:01:35]}  g5 {[%clk 0:01:51]} 14. b5 {[%clk 0:01:13]}  Nf6 {[%clk 0:01:49]} 15. bxc6 {[%clk 0:00:28]}  bxc6 {[%clk 0:01:43]} 16. Ba3 {[%clk 0:00:28]}  c5 {[%clk 0:01:37]} 17. Nd5 {[%clk 0:00:27]}  Nc6 {[%clk 0:01:37]} 18. Bb2 {[%clk 0:00:21]}  Rb8 {[%clk 0:01:18]} 19. Ba1 {[%clk 0:00:19]}  Nxd5 {[%clk 0:01:14]} 20. cxd5 {[%clk 0:00:18]}  Nb4 {[%clk 0:01:14]} 21. Qd2 {[%clk 0:00:16]}  Qd7 {[%clk 0:01:13]} 22. Bc3 {[%clk 0:00:14]}  a5 {[%clk 0:01:12]} 23. Rfe1 {[%clk 0:00:13]}  fxg3 {[%clk 0:01:10]} 0-1


[Site "https://www.chess.com"]

[Event "Titled Tuesday Blitz January 10 Early 2023"]
[White "Levine, David"]
[Black "Broca Jimenez, Fernando"]
[WhiteFideId "2011611"]
[BlackFideId "5104742"]
[WhiteElo "2040"]
[BlackElo "2075"]
[Result "1-0"]
[Round "09"]
[TimeControl "180+2"]
[Date "2023.01.10"]
[WhiteClock "0:00:01"]
[BlackClock "0:00:01"]

1. d4 {[%clk 0:03:00]}  Nf6 {[%clk 0:02:55]} 2. c4 {[%clk 0:03:00]}  e6 {[%clk 0:02:55]} 3. g3 {[%clk 0:03:00]}  Bb4+ {[%clk 0:02:41]} 4. Bd2 {[%clk 0:03:00]}  Qe7 {[%clk 0:02:41]} 5. Bg2 {[%clk 0:02:59]}  O-O {[%clk 0:02:40]} 6. Nf3 {[%clk 0:02:58]}  d5 {[%clk 0:02:39]} 7. Qc2 {[%clk 0:02:55]}  b6 {[%clk 0:02:26]} 8. O-O {[%clk 0:02:47]}  Bb7 {[%clk 0:02:13]} 9. Ne5 {[%clk 0:02:47]}  Nfd7 {[%clk 0:01:56]} 10. Bxb4 {[%clk 0:02:27]}  Qxb4 {[%clk 0:01:54]} 11. Nd3 {[%clk 0:02:26]}  Qe7 {[%clk 0:01:47]} 12. Nc3 {[%clk 0:02:12]}  c6 {[%clk 0:01:43]} 13. cxd5 {[%clk 0:02:03]}  cxd5 {[%clk 0:01:38]} 14. Rac1 {[%clk 0:01:29]}  Rc8 {[%clk 0:01:29]} 15. Qd2 {[%clk 0:01:22]}  Nc6 {[%clk 0:01:25]} 16. e3 {[%clk 0:01:21]}  Nb4 {[%clk 0:01:01]} 17. Rfd1 {[%clk 0:01:07]}  Nxd3 {[%clk 0:00:41]} 18. Qxd3 {[%clk 0:01:07]}  Qb4 {[%clk 0:00:34]} 19. Rc2 {[%clk 0:01:02]}  Rc7 {[%clk 0:00:20]} 20. Rdc1 {[%clk 0:01:02]}  Rac8 {[%clk 0:00:19]} 21. h4 {[%clk 0:01:02]}  Qa5 {[%clk 0:00:17]} 22. Qe2 {[%clk 0:00:57]}  Ba6 {[%clk 0:00:17]} 23. Qg4 {[%clk 0:00:56]}  Bd3 {[%clk 0:00:17]} 24. Rd2 {[%clk 0:00:53]}  Nf6 {[%clk 0:00:18]} 25. Qd1 {[%clk 0:00:48]}  Be4 {[%clk 0:00:17]} 26. f3 {[%clk 0:00:45]}  Bg6 {[%clk 0:00:17]} 27. g4 {[%clk 0:00:45]}  h5 {[%clk 0:00:16]} 28. g5 {[%clk 0:00:42]}  Nd7 {[%clk 0:00:16]} 29. e4 {[%clk 0:00:41]}  dxe4 {[%clk 0:00:13]} 30. fxe4 {[%clk 0:00:41]}  Nb8 {[%clk 0:00:12]} 31. d5 {[%clk 0:00:34]}  exd5 {[%clk 0:00:12]} 32. exd5 {[%clk 0:00:34]}  Nd7 {[%clk 0:00:11]} 33. d6 {[%clk 0:00:34]}  Rc5 {[%clk 0:00:11]} 34. a3 {[%clk 0:00:29]}  Rc4 {[%clk 0:00:11]} 35. Qe1 {[%clk 0:00:25]}  Qc5+ {[%clk 0:00:08]} 36. Kh1 {[%clk 0:00:16]}  Qe5 {[%clk 0:00:09]} 37. Re2 {[%clk 0:00:13]}  Qf4 {[%clk 0:00:08]} 38. Re8+ {[%clk 0:00:12]}  Rxe8 {[%clk 0:00:08]} 39. Qxe8+ {[%clk 0:00:12]}  Kh7 {[%clk 0:00:09]} 40. Rf1 {[%clk 0:00:12]}  Qxh4+ {[%clk 0:00:08]} 41. Kg1 {[%clk 0:00:12]}  Qg4 {[%clk 0:00:08]} 42. Nd5 {[%clk 0:00:07]}  Be4 {[%clk 0:00:08]} 43. Ne3 {[%clk 0:00:04]}  Qh4 {[%clk 0:00:02]} 44. g6+ {[%clk 0:00:03]}  fxg6 {[%clk 0:00:01]} 45. Qxd7 {[%clk 0:00:01]} 1-0


[Site "https://www.chess.com"]

[Event "Titled Tuesday Blitz January 10 Early 2023"]
[White "Muzzi, Eduardo"]
[Black "Guimaraes, Wagner Peixoto"]
[WhiteFideId "3001253"]
[BlackFideId "2100940"]
[WhiteElo "1917"]
[BlackElo "2194"]
[Result "0-1"]
[Round "09"]
[TimeControl "180+2"]
[Date "2023.01.10"]
[WhiteClock "0:00:01"]
[BlackClock "0:00:22"]

1. e4 {[%clk 0:02:54]}  c5 {[%clk 0:02:58]} 2. Nc3 {[%clk 0:02:53]}  e6 {[%clk 0:02:58]} 3. Bc4 {[%clk 0:02:52]}  Nc6 {[%clk 0:02:58]} 4. f4 {[%clk 0:02:51]}  d6 {[%clk 0:02:57]} 5. Nf3 {[%clk 0:02:49]}  a6 {[%clk 0:02:57]} 6. a4 {[%clk 0:02:48]}  b6 {[%clk 0:02:57]} 7. O-O {[%clk 0:02:48]}  Bb7 {[%clk 0:02:58]} 8. d3 {[%clk 0:02:47]}  Nf6 {[%clk 0:02:54]} 9. Qe1 {[%clk 0:02:47]}  Qc7 {[%clk 0:02:54]} 10. f5 {[%clk 0:02:47]}  e5 {[%clk 0:02:46]} 11. Bg5 {[%clk 0:02:46]}  Nb4 {[%clk 0:02:43]} 12. Bb3 {[%clk 0:02:44]}  Be7 {[%clk 0:02:42]} 13. Kh1 {[%clk 0:02:09]}  h6 {[%clk 0:02:35]} 14. Bh4 {[%clk 0:02:02]}  O-O-O {[%clk 0:02:24]} 15. Qd2 {[%clk 0:01:14]}  Rdf8 {[%clk 0:01:51]} 16. Ne2 {[%clk 0:01:13]}  d5 {[%clk 0:01:38]} 17. c3 {[%clk 0:01:11]}  dxe4 {[%clk 0:01:38]} 18. cxb4 {[%clk 0:00:45]}  exf3 {[%clk 0:01:38]} 19. Rxf3 {[%clk 0:00:40]}  Bxf3 {[%clk 0:01:35]} 20. gxf3 {[%clk 0:00:40]}  Qc6 {[%clk 0:01:30]} 21. Qe3 {[%clk 0:00:33]}  Ng4 {[%clk 0:01:25]} 22. Qe4 {[%clk 0:00:24]}  Qxe4 {[%clk 0:01:23]} 23. dxe4 {[%clk 0:00:24]}  Bxh4 {[%clk 0:01:18]} 24. fxg4 {[%clk 0:00:24]}  cxb4 {[%clk 0:01:12]} 25. Rc1+ {[%clk 0:00:15]}  Kb8 {[%clk 0:01:12]} 26. Rc6 {[%clk 0:00:13]}  Bd8 {[%clk 0:01:09]} 27. Bd5 {[%clk 0:00:07]}  Bc7 {[%clk 0:01:07]} 28. a5 {[%clk 0:00:07]}  bxa5 {[%clk 0:00:52]} 29. Rxa6 {[%clk 0:00:06]}  Kc8 {[%clk 0:00:49]} 30. Nc1 {[%clk 0:00:03]}  Rd8 {[%clk 0:00:43]} 31. Nb3 {[%clk 0:00:03]}  Rxd5 {[%clk 0:00:41]} 32. exd5 {[%clk 0:00:03]}  Rd8 {[%clk 0:00:41]} 33. Ra8+ {[%clk 0:00:02]}  Kb7 {[%clk 0:00:31]} 34. Rxd8 {[%clk 0:00:02]}  Bxd8 {[%clk 0:00:32]} 35. Nc5+ {[%clk 0:00:02]}  Ka7 {[%clk 0:00:26]} 36. b3 {[%clk 0:00:01]}  Kb6 {[%clk 0:00:22]} 0-1


[Site "https://www.chess.com"]

[Event "Titled Tuesday Blitz January 10 Early 2023"]
[White "Vifleemskaia, Svetlana"]
[Black "Guevara Sanchez, Erick Marvin"]
[WhiteFideId "4129490"]
[BlackFideId "6700136"]
[WhiteElo "1971"]
[BlackElo "2073"]
[Result "1-0"]
[Round "09"]
[TimeControl "180+2"]
[Date "2023.01.10"]
[WhiteClock "0:00:22"]
[BlackClock "0:00:07"]

1. d4 {[%clk 0:02:59]}  e5 {[%clk 0:02:58]} 2. dxe5 {[%clk 0:02:59]}  Nc6 {[%clk 0:02:57]} 3. Nf3 {[%clk 0:02:59]}  Qe7 {[%clk 0:02:57]} 4. e4 {[%clk 0:02:59]}  Nxe5 {[%clk 0:02:55]} 5. Be2 {[%clk 0:02:57]}  Nxf3+ {[%clk 0:02:52]} 6. Bxf3 {[%clk 0:02:57]}  Nf6 {[%clk 0:02:47]} 7. O-O {[%clk 0:02:56]}  d6 {[%clk 0:02:46]} 8. Bg5 {[%clk 0:02:50]}  Be6 {[%clk 0:02:45]} 9. c3 {[%clk 0:02:47]}  h6 {[%clk 0:02:43]} 10. Be3 {[%clk 0:02:38]}  Nd7 {[%clk 0:02:36]} 11. Qa4 {[%clk 0:02:35]}  g5 {[%clk 0:02:13]} 12. Bd4 {[%clk 0:02:33]}  Rg8 {[%clk 0:02:07]} 13. Be2 {[%clk 0:02:33]}  c6 {[%clk 0:01:48]} 14. Nd2 {[%clk 0:02:31]}  g4 {[%clk 0:01:43]} 15. b4 {[%clk 0:02:26]}  h5 {[%clk 0:01:41]} 16. Bc4 {[%clk 0:02:10]}  h4 {[%clk 0:01:35]} 17. Bxe6 {[%clk 0:02:08]}  fxe6 {[%clk 0:01:33]} 18. e5 {[%clk 0:02:03]}  d5 {[%clk 0:01:26]} 19. Qc2 {[%clk 0:01:46]}  Bh6 {[%clk 0:01:19]} 20. Be3 {[%clk 0:01:33]}  Bxe3 {[%clk 0:01:15]} 21. fxe3 {[%clk 0:01:34]}  Nxe5 {[%clk 0:01:15]} 22. Rf4 {[%clk 0:01:29]}  h3 {[%clk 0:01:13]} 23. g3 {[%clk 0:01:28]}  O-O-O {[%clk 0:01:12]} 24. Raf1 {[%clk 0:01:23]}  Rdf8 {[%clk 0:01:11]} 25. a4 {[%clk 0:01:21]}  Rxf4 {[%clk 0:01:07]} 26. exf4 {[%clk 0:01:21]}  Nd7 {[%clk 0:01:05]} 27. a5 {[%clk 0:01:19]}  Qd6 {[%clk 0:00:55]} 28. Qh7 {[%clk 0:01:16]}  Rf8 {[%clk 0:00:42]} 29. Qg7 {[%clk 0:01:12]}  Nf6 {[%clk 0:00:38]} 30. Rd1 {[%clk 0:01:02]}  Qd8 {[%clk 0:00:12]} 31. Re1 {[%clk 0:00:57]}  Rg8 {[%clk 0:00:11]} 32. Qf7 {[%clk 0:00:53]}  Ne4 {[%clk 0:00:11]} 33. Qxe6+ {[%clk 0:00:52]}  Kb8 {[%clk 0:00:12]} 34. Nxe4 {[%clk 0:00:44]}  dxe4 {[%clk 0:00:12]} 35. Qxe4 {[%clk 0:00:42]}  Qd2 {[%clk 0:00:12]} 36. Qe5+ {[%clk 0:00:40]}  Kc8 {[%clk 0:00:12]} 37. Qe6+ {[%clk 0:00:40]}  Kc7 {[%clk 0:00:12]} 38. Qe7+ {[%clk 0:00:35]}  Kb8 {[%clk 0:00:12]} 39. Qe5+ {[%clk 0:00:34]}  Kc8 {[%clk 0:00:12]} 40. Qe2 {[%clk 0:00:29]}  Qxc3 {[%clk 0:00:10]} 41. Rd1 {[%clk 0:00:22]}  Rd8 {[%clk 0:00:08]} 42. Qe6+ {[%clk 0:00:22]}  Kc7 {[%clk 0:00:08]} 43. Qe7+ {[%clk 0:00:22]}  Rd7 {[%clk 0:00:07]} 44. Qxd7+ {[%clk 0:00:22]}  Kb8 {[%clk 0:00:07]} 45. Qd8# {[%clk 0:00:22]} 1-0


[Site "https://www.chess.com"]

[Event "Titled Tuesday Blitz January 10 Early 2023"]
[White "De Souza, Cristiano Gomes"]
[Black "Mohammadian, Mohammad"]
[WhiteFideId "2151758"]
[BlackFideId "12566055"]
[WhiteElo "2018"]
[BlackElo "1398"]
[Result "1-0"]
[Round "09"]
[TimeControl "180+2"]
[Date "2023.01.10"]
[WhiteClock "0:01:38"]
[BlackClock "0:00:06"]

1. d4 {[%clk 0:02:59]}  Nf6 {[%clk 0:02:58]} 2. c4 {[%clk 0:02:59]}  g6 {[%clk 0:02:57]} 3. Nc3 {[%clk 0:02:59]}  d5 {[%clk 0:02:56]} 4. Bf4 {[%clk 0:02:58]}  Bg7 {[%clk 0:02:51]} 5. e3 {[%clk 0:02:59]}  O-O {[%clk 0:02:48]} 6. Nf3 {[%clk 0:02:59]}  c6 {[%clk 0:02:47]} 7. Rc1 {[%clk 0:02:59]}  e6 {[%clk 0:02:42]} 8. h3 {[%clk 0:02:57]}  Nbd7 {[%clk 0:02:37]} 9. Ne5 {[%clk 0:02:57]}  Nxe5 {[%clk 0:02:34]} 10. Bxe5 {[%clk 0:02:57]}  Nd7 {[%clk 0:02:29]} 11. Bxg7 {[%clk 0:02:57]}  Kxg7 {[%clk 0:02:28]} 12. Be2 {[%clk 0:02:58]}  Nf6 {[%clk 0:02:21]} 13. O-O {[%clk 0:02:56]}  Re8 {[%clk 0:02:19]} 14. f3 {[%clk 0:02:55]}  e5 {[%clk 0:02:19]} 15. Qd2 {[%clk 0:02:44]}  e4 {[%clk 0:02:15]} 16. f4 {[%clk 0:02:43]}  Be6 {[%clk 0:01:48]} 17. cxd5 {[%clk 0:02:42]}  cxd5 {[%clk 0:01:44]} 18. Nb5 {[%clk 0:02:42]}  Re7 {[%clk 0:01:31]} 19. Qb4 {[%clk 0:02:28]}  a6 {[%clk 0:01:28]} 20. Na3 {[%clk 0:02:11]}  Rc7 {[%clk 0:01:23]} 21. Rc3 {[%clk 0:02:06]}  Rac8 {[%clk 0:01:22]} 22. Rfc1 {[%clk 0:02:04]}  Rxc3 {[%clk 0:01:22]} 23. Rxc3 {[%clk 0:02:05]}  Rxc3 {[%clk 0:01:21]} 24. Qxc3 {[%clk 0:02:06]}  Qd7 {[%clk 0:01:09]} 25. g4 {[%clk 0:01:54]}  Qd8 {[%clk 0:00:51]} 26. Qc5 {[%clk 0:01:47]}  Nd7 {[%clk 0:00:44]} 27. Qd6 {[%clk 0:01:45]}  Nf8 {[%clk 0:00:36]} 28. Qxd8 {[%clk 0:01:44]}  h6 {[%clk 0:00:10]} 29. Qc7 {[%clk 0:01:38]}  Nh7 {[%clk 0:00:06]} 30. Qxb7 {[%clk 0:01:38]} 1-0


[Site "https://www.chess.com"]

[Event "Titled Tuesday Blitz January 10 Early 2023"]
[White "Ivanova, Karina"]
[Black "Kiseleva, Arina"]
[WhiteFideId "24139750"]
[BlackFideId "4164989"]
[WhiteElo "2085"]
[BlackElo "1962"]
[Result "1-0"]
[Round "09"]
[TimeControl "180+2"]
[Date "2023.01.10"]
[WhiteClock "0:00:11"]
[BlackClock "0:00:01"]

1. Nf3 {[%clk 0:02:59]}  d5 {[%clk 0:02:59]} 2. g3 {[%clk 0:02:59]}  c6 {[%clk 0:02:58]} 3. Bg2 {[%clk 0:02:59]}  Nd7 {[%clk 0:02:56]} 4. O-O {[%clk 0:02:57]}  e5 {[%clk 0:02:56]} 5. d3 {[%clk 0:02:57]}  Bd6 {[%clk 0:02:54]} 6. c4 {[%clk 0:02:56]}  Ne7 {[%clk 0:02:53]} 7. Nc3 {[%clk 0:02:54]}  O-O {[%clk 0:02:47]} 8. cxd5 {[%clk 0:02:50]}  cxd5 {[%clk 0:02:40]} 9. Bd2 {[%clk 0:02:47]}  a6 {[%clk 0:02:38]} 10. Rc1 {[%clk 0:02:43]}  Nf6 {[%clk 0:02:22]} 11. Qb3 {[%clk 0:02:36]}  b5 {[%clk 0:02:09]} 12. a4 {[%clk 0:02:27]}  b4 {[%clk 0:01:59]} 13. Nd1 {[%clk 0:02:26]}  a5 {[%clk 0:01:58]} 14. Ne3 {[%clk 0:02:26]}  Be6 {[%clk 0:01:52]} 15. Ng5 {[%clk 0:02:23]}  Rc8 {[%clk 0:01:32]} 16. Nxe6 {[%clk 0:02:22]}  fxe6 {[%clk 0:01:31]} 17. Bh3 {[%clk 0:02:14]}  Qd7 {[%clk 0:01:28]} 18. Ng4 {[%clk 0:02:02]}  h5 {[%clk 0:01:21]} 19. Nxf6+ {[%clk 0:02:01]}  Rxf6 {[%clk 0:01:20]} 20. Rxc8+ {[%clk 0:01:43]}  Qxc8 {[%clk 0:01:15]} 21. Rc1 {[%clk 0:01:41]}  Qb7 {[%clk 0:01:12]} 22. Bg5 {[%clk 0:01:35]}  Rg6 {[%clk 0:01:08]} 23. Be3 {[%clk 0:01:34]}  Nf5 {[%clk 0:01:01]} 24. Bc5 {[%clk 0:01:30]}  Bxc5 {[%clk 0:00:55]} 25. Rxc5 {[%clk 0:01:30]}  Nd4 {[%clk 0:00:56]} 26. Qd1 {[%clk 0:01:28]}  Rf6 {[%clk 0:00:29]} 27. Bg2 {[%clk 0:01:15]}  Qf7 {[%clk 0:00:15]} 28. e3 {[%clk 0:00:46]}  Nf3+ {[%clk 0:00:13]} 29. Kh1 {[%clk 0:00:39]}  h4 {[%clk 0:00:08]} 30. Rxa5 {[%clk 0:00:27]}  hxg3 {[%clk 0:00:08]} 31. fxg3 {[%clk 0:00:25]}  Nd2 {[%clk 0:00:05]} 32. Ra8+ {[%clk 0:00:18]}  Kh7 {[%clk 0:00:04]} 33. h3 {[%clk 0:00:14]}  Rf2 {[%clk 0:00:04]} 34. Qg4 {[%clk 0:00:12]}  Rf1+ {[%clk 0:00:03]} 35. Kh2 {[%clk 0:00:11]}  Qf2 {[%clk 0:00:01]} 36. Qh5# {[%clk 0:00:11]} 1-0


[Site "https://www.chess.com"]

[Event "Titled Tuesday Blitz January 10 Early 2023"]
[White "Deev, Andrei"]
[Black "Tarnowska, Aleksandra"]
[WhiteFideId "4102690"]
[BlackFideId "1180967"]
[WhiteElo "2390"]
[BlackElo "1835"]
[Result "1-0"]
[Round "09"]
[TimeControl "180+2"]
[Date "2023.01.10"]
[WhiteClock "0:01:12"]
[BlackClock "0:00:01"]

1. e4 {[%clk 0:03:00]}  c5 {[%clk 0:03:00]} 2. Nf3 {[%clk 0:03:00]}  e6 {[%clk 0:03:01]} 3. c3 {[%clk 0:02:59]}  d5 {[%clk 0:03:00]} 4. exd5 {[%clk 0:02:59]}  Qxd5 {[%clk 0:03:01]} 5. d4 {[%clk 0:02:59]}  Nf6 {[%clk 0:03:01]} 6. Be2 {[%clk 0:02:59]}  Be7 {[%clk 0:03:01]} 7. Na3 {[%clk 0:02:57]}  cxd4 {[%clk 0:02:59]} 8. Nb5 {[%clk 0:02:57]}  Na6 {[%clk 0:02:30]} 9. Nbxd4 {[%clk 0:02:56]}  O-O {[%clk 0:02:27]} 10. O-O {[%clk 0:02:37]}  e5 {[%clk 0:01:45]} 11. Nb3 {[%clk 0:02:32]}  e4 {[%clk 0:01:30]} 12. Qxd5 {[%clk 0:02:24]}  Nxd5 {[%clk 0:01:31]} 13. Nfd4 {[%clk 0:02:22]}  Nc5 {[%clk 0:01:15]} 14. Re1 {[%clk 0:02:14]}  Nxb3 {[%clk 0:01:00]} 15. axb3 {[%clk 0:02:13]}  f5 {[%clk 0:00:33]} 16. Bc4 {[%clk 0:02:12]}  Rd8 {[%clk 0:00:31]} 17. Nb5 {[%clk 0:02:03]}  Be6 {[%clk 0:00:16]} 18. Rxa7 {[%clk 0:01:46]}  Rxa7 {[%clk 0:00:16]} 19. Nxa7 {[%clk 0:01:45]}  Ra8 {[%clk 0:00:16]} 20. Nb5 {[%clk 0:01:39]}  Ra1 {[%clk 0:00:16]} 21. Kf1 {[%clk 0:01:29]}  Kf7 {[%clk 0:00:13]} 22. Nd4 {[%clk 0:01:26]}  Nc7 {[%clk 0:00:04]} 23. Nxf5 {[%clk 0:01:20]}  Bxc4+ {[%clk 0:00:03]} 24. bxc4 {[%clk 0:01:20]}  Bc5 {[%clk 0:00:02]} 25. b4 {[%clk 0:01:13]}  Bb6 {[%clk 0:00:01]} 26. Be3 {[%clk 0:01:12]} 1-0


[Site "https://www.chess.com"]

[Event "Titled Tuesday Blitz January 10 Early 2023"]
[White "Nakamura, Hikaru"]
[Black "Sadhwani, Raunak"]
[WhiteFideId "2016192"]
[BlackFideId "35093487"]
[WhiteElo "2775"]
[BlackElo "2627"]
[Result "1/2-1/2"]
[Round "10"]
[TimeControl "180+2"]
[Date "2023.01.10"]
[WhiteClock "0:01:05"]
[BlackClock "0:01:47"]

1. e4 {[%clk 0:03:00]}  e5 {[%clk 0:02:59]} 2. Nf3 {[%clk 0:03:00]}  Nc6 {[%clk 0:03:00]} 3. Bb5 {[%clk 0:02:58]}  Nf6 {[%clk 0:03:00]} 4. d3 {[%clk 0:02:57]}  Bc5 {[%clk 0:03:00]} 5. Bxc6 {[%clk 0:02:57]}  dxc6 {[%clk 0:03:01]} 6. Nbd2 {[%clk 0:02:58]}  Be6 {[%clk 0:03:01]} 7. O-O {[%clk 0:02:57]}  Bd6 {[%clk 0:02:57]} 8. b3 {[%clk 0:02:56]}  O-O {[%clk 0:02:55]} 9. Nc4 {[%clk 0:02:55]}  Nd7 {[%clk 0:02:52]} 10. Bb2 {[%clk 0:02:46]}  Bxc4 {[%clk 0:02:46]} 11. bxc4 {[%clk 0:02:46]}  Qe7 {[%clk 0:02:47]} 12. a4 {[%clk 0:02:40]}  b6 {[%clk 0:02:44]} 13. g3 {[%clk 0:02:40]}  a6 {[%clk 0:02:41]} 14. Nh4 {[%clk 0:02:28]}  g6 {[%clk 0:02:41]} 15. Qg4 {[%clk 0:02:20]}  h5 {[%clk 0:02:41]} 16. Qe2 {[%clk 0:02:11]}  b5 {[%clk 0:02:40]} 17. cxb5 {[%clk 0:02:01]}  axb5 {[%clk 0:02:41]} 18. axb5 {[%clk 0:02:00]}  cxb5 {[%clk 0:02:38]} 19. d4 {[%clk 0:02:01]}  exd4 {[%clk 0:02:29]} 20. Bxd4 {[%clk 0:01:58]}  Be5 {[%clk 0:02:19]} 21. Bxe5 {[%clk 0:01:51]}  Qxe5 {[%clk 0:02:18]} 22. Rxa8 {[%clk 0:01:52]}  Rxa8 {[%clk 0:02:19]} 23. Nf3 {[%clk 0:01:52]}  Qe7 {[%clk 0:02:03]} 24. Nd4 {[%clk 0:01:32]}  b4 {[%clk 0:02:03]} 25. Qb5 {[%clk 0:01:23]}  Rb8 {[%clk 0:01:47]} 26. Nc6 {[%clk 0:01:05]} 1/2-1/2


[Site "https://www.chess.com"]

[Event "Titled Tuesday Blitz January 10 Early 2023"]
[White "Anton Guijarro, David"]
[Black "Chigaev, Maksim"]
[WhiteFideId "2285525"]
[BlackFideId "4108116"]
[WhiteElo "2690"]
[BlackElo "2628"]
[Result "1/2-1/2"]
[Round "10"]
[TimeControl "180+2"]
[Date "2023.01.10"]
[WhiteClock "0:00:28"]
[BlackClock "0:00:24"]

1. Nf3 {[%clk 0:03:00]}  Nf6 {[%clk 0:03:00]} 2. b3 {[%clk 0:02:59]}  g6 {[%clk 0:03:01]} 3. Bb2 {[%clk 0:03:00]}  d5 {[%clk 0:03:01]} 4. c4 {[%clk 0:02:59]}  c6 {[%clk 0:02:56]} 5. g3 {[%clk 0:02:58]}  Bg7 {[%clk 0:02:55]} 6. Bg2 {[%clk 0:02:58]}  O-O {[%clk 0:02:56]} 7. O-O {[%clk 0:02:58]}  Re8 {[%clk 0:02:57]} 8. d4 {[%clk 0:02:57]}  Bf5 {[%clk 0:02:53]} 9. Nc3 {[%clk 0:02:56]}  Ne4 {[%clk 0:02:49]} 10. Nh4 {[%clk 0:02:44]}  Nxc3 {[%clk 0:02:48]} 11. Bxc3 {[%clk 0:02:45]}  Bg4 {[%clk 0:02:44]} 12. f3 {[%clk 0:02:33]}  Bc8 {[%clk 0:02:33]} 13. f4 {[%clk 0:02:18]}  dxc4 {[%clk 0:02:18]} 14. bxc4 {[%clk 0:02:19]}  c5 {[%clk 0:02:19]} 15. Nf3 {[%clk 0:01:26]}  Nc6 {[%clk 0:02:16]} 16. Ne5 {[%clk 0:01:24]}  cxd4 {[%clk 0:01:56]} 17. Bxc6 {[%clk 0:01:23]}  bxc6 {[%clk 0:01:55]} 18. Qxd4 {[%clk 0:01:20]}  Qxd4+ {[%clk 0:01:12]} 19. Bxd4 {[%clk 0:01:21]}  Be6 {[%clk 0:01:13]} 20. Rfc1 {[%clk 0:01:14]}  Bxe5 {[%clk 0:01:09]} 21. fxe5 {[%clk 0:01:14]}  a5 {[%clk 0:01:02]} 22. Rab1 {[%clk 0:01:03]}  Rab8 {[%clk 0:00:55]} 23. Rb6 {[%clk 0:00:55]}  Rxb6 {[%clk 0:00:51]} 24. Bxb6 {[%clk 0:00:56]}  a4 {[%clk 0:00:51]} 25. a3 {[%clk 0:00:53]}  Rb8 {[%clk 0:00:41]} 26. c5 {[%clk 0:00:41]}  Rb7 {[%clk 0:00:40]} 27. Rd1 {[%clk 0:00:27]}  Rd7 {[%clk 0:00:23]} 28. Rxd7 {[%clk 0:00:28]}  Bxd7 {[%clk 0:00:24]} 1/2-1/2


[Site "https://www.chess.com"]

[Event "Titled Tuesday Blitz January 10 Early 2023"]
[White "Bacrot, Etienne"]
[Black "Tomashevsky, Evgeny"]
[WhiteFideId "605506"]
[BlackFideId "4147235"]
[WhiteElo "2667"]
[BlackElo "2694"]
[Result "0-1"]
[Round "10"]
[TimeControl "180+2"]
[Date "2023.01.10"]
[WhiteClock "0:00:01"]
[BlackClock "0:00:05"]

1. d4 {[%clk 0:03:00]}  Nf6 {[%clk 0:02:59]} 2. Nf3 {[%clk 0:03:00]}  e6 {[%clk 0:02:59]} 3. c4 {[%clk 0:03:00]}  d5 {[%clk 0:02:58]} 4. Nc3 {[%clk 0:02:59]}  Be7 {[%clk 0:02:56]} 5. Bf4 {[%clk 0:02:59]}  O-O {[%clk 0:02:55]} 6. e3 {[%clk 0:03:00]}  Nbd7 {[%clk 0:02:55]} 7. Be2 {[%clk 0:02:59]}  dxc4 {[%clk 0:02:52]} 8. a4 {[%clk 0:02:57]}  Nd5 {[%clk 0:02:45]} 9. Bxc4 {[%clk 0:02:43]}  Nxf4 {[%clk 0:02:44]} 10. exf4 {[%clk 0:02:43]}  c5 {[%clk 0:02:39]} 11. O-O {[%clk 0:02:40]}  Nb6 {[%clk 0:02:38]} 12. Be2 {[%clk 0:02:34]}  cxd4 {[%clk 0:02:38]} 13. Nxd4 {[%clk 0:02:34]}  Bf6 {[%clk 0:02:37]} 14. Ndb5 {[%clk 0:02:27]}  a6 {[%clk 0:02:35]} 15. Qxd8 {[%clk 0:02:06]}  Rxd8 {[%clk 0:02:34]} 16. Nc7 {[%clk 0:02:06]}  Rb8 {[%clk 0:02:31]} 17. a5 {[%clk 0:02:06]}  Nd7 {[%clk 0:02:17]} 18. Ne4 {[%clk 0:01:58]}  Be7 {[%clk 0:02:13]} 19. Rfd1 {[%clk 0:01:49]}  Kf8 {[%clk 0:02:07]} 20. b4 {[%clk 0:00:52]}  Nf6 {[%clk 0:02:05]} 21. Nxf6 {[%clk 0:00:31]}  Bxf6 {[%clk 0:02:00]} 22. b5 {[%clk 0:00:31]}  axb5 {[%clk 0:01:37]} 23. Nxb5 {[%clk 0:00:30]}  Bd7 {[%clk 0:01:33]} 24. Rab1 {[%clk 0:00:27]}  Bc6 {[%clk 0:01:26]} 25. Nd6 {[%clk 0:00:25]}  Be7 {[%clk 0:00:58]} 26. Nc4 {[%clk 0:00:20]}  g6 {[%clk 0:00:50]} 27. Ne5 {[%clk 0:00:16]}  Rxd1+ {[%clk 0:00:48]} 28. Rxd1 {[%clk 0:00:14]}  Be8 {[%clk 0:00:44]} 29. Bf3 {[%clk 0:00:08]}  Ra8 {[%clk 0:00:33]} 30. Ra1 {[%clk 0:00:08]}  Ra7 {[%clk 0:00:30]} 31. Rb1 {[%clk 0:00:05]}  Rxa5 {[%clk 0:00:26]} 32. Bxb7 {[%clk 0:00:05]}  g5 {[%clk 0:00:26]} 33. Nc4 {[%clk 0:00:03]}  Rc5 {[%clk 0:00:25]} 34. Nb6 {[%clk 0:00:01]}  gxf4 {[%clk 0:00:25]} 35. g3 {[%clk 0:00:02]}  Bf6 {[%clk 0:00:23]} 36. gxf4 {[%clk 0:00:02]}  Bd4 {[%clk 0:00:18]} 37. Rd1 {[%clk 0:00:02]}  Bf6 {[%clk 0:00:07]} 38. Nd7+ {[%clk 0:00:01]}  Bxd7 {[%clk 0:00:07]} 39. Rxd7 {[%clk 0:00:02]}  Rf5 {[%clk 0:00:07]} 40. Be4 {[%clk 0:00:01]}  Rxf4 {[%clk 0:00:08]} 41. Bxh7 {[%clk 0:00:02]}  Bd4 {[%clk 0:00:08]} 42. Kg2 {[%clk 0:00:02]}  Bxf2 {[%clk 0:00:08]} 43. Rd3 {[%clk 0:00:01]}  Bh4 {[%clk 0:00:06]} 44. Rf3 {[%clk 0:00:01]}  Rd4 {[%clk 0:00:06]} 45. Bg6 {[%clk 0:00:01]}  f6 {[%clk 0:00:07]} 46. Kh3 {[%clk 0:00:01]}  Kg7 {[%clk 0:00:07]} 47. Bh5 {[%clk 0:00:01]}  Bg5 {[%clk 0:00:07]} 48. Be8 {[%clk 0:00:01]}  f5 {[%clk 0:00:06]} 49. Bc6 {[%clk 0:00:01]}  Kf6 {[%clk 0:00:06]} 50. Kg2 {[%clk 0:00:02]}  e5 {[%clk 0:00:06]} 51. Rb3 {[%clk 0:00:02]}  Rd2+ {[%clk 0:00:06]} 52. Kf1 {[%clk 0:00:02]}  e4 {[%clk 0:00:06]} 53. Rb5 {[%clk 0:00:01]}  Bh4 {[%clk 0:00:06]} 54. Bb7 {[%clk 0:00:01]}  Rxh2 {[%clk 0:00:04]} 55. Bc8 {[%clk 0:00:01]}  Rf2+ {[%clk 0:00:05]} 56. Kg1 {[%clk 0:00:01]}  Kg5 {[%clk 0:00:05]} 0-1


[Site "https://www.chess.com"]